{"text_format":"1","workbook":"xlsx","n_sheets":6,"sheets":["Dataset","MS PowerPoint or Word","MS Paint","PDF","Web Page","VBA"],"not_rendered":{"charts":6,"images":0,"macros":1,"external_links":0,"defined_names":0,"comments":0,"pivot_tables":0},"unopened":[],"bounds":{"document_bytes":16777216,"sheet_cells":100000,"rows_first":2000,"rows_last":500,"rows_between":2000,"halvings":0,"cell_chars":16384,"cell_head_chars":4096},"cells_cut":0,"cells_raw":0,"read":"whole","date_system":"1900"}

{"sheet":"Dataset","index":0,"n_rows":10,"n_cols":4,"rows_kept":10,"cut":false,"hidden":false,"merged":[[1,1,1,3]]}
[]
[null,"Dataset Overview"]
[]
[null,"Seller","Jan","Feb"]
[null,"Alex",1200,2700]
[null,"Paul",3400,2900]
[null,"John",3100,1800]
[null,"Sam",3700,1500]
[null,"Tom",3300,2800]
[null,"Total",{"$f":"SUM(C5:C9)","v":14700},{"$f":"SUM(D5:D9)","v":11700}]

{"sheet":"MS PowerPoint or Word","index":1,"n_rows":10,"n_cols":14,"rows_kept":10,"cut":false,"hidden":false,"merged":[[1,1,1,3],[1,11,1,13]]}
[]
[null,"Use of Microsoft PowerPoint or Word",null,null,null,null,null,null,null,null,null,"Try Yourself"]
[]
[null,"Seller","Jan","Feb",null,null,null,null,null,null,null,"Seller","Jan","Feb"]
[null,"Alex",1200,2700,null,null,null,null,null,null,null,"Alex",1200,2700]
[null,"Paul",3400,2900,null,null,null,null,null,null,null,"Paul",3400,2900]
[null,"John",3100,1800,null,null,null,null,null,null,null,"John",3100,1800]
[null,"Sam",3700,1500,null,null,null,null,null,null,null,"Sam",3700,1500]
[null,"Tom",3300,2800,null,null,null,null,null,null,null,"Tom",3300,2800]
[null,"Total",{"$f":"SUM(C5:C9)","v":14700},{"$f":"SUM(D5:D9)","v":11700},null,null,null,null,null,null,null,"Total",{"$f":"SUM(M5:M9)","v":14700},{"$f":"SUM(N5:N9)","v":11700}]

{"sheet":"MS Paint","index":2,"n_rows":10,"n_cols":14,"rows_kept":10,"cut":false,"hidden":false,"merged":[[1,1,1,3],[1,11,1,13]]}
[]
[null,"Use of Microsoft Paint",null,null,null,null,null,null,null,null,null,"Try Yourself"]
[]
[null,"Seller","Jan","Feb",null,null,null,null,null,null,null,"Seller","Jan","Feb"]
[null,"Alex",1200,2700,null,null,null,null,null,null,null,"Alex",1200,2700]
[null,"Paul",3400,2900,null,null,null,null,null,null,null,"Paul",3400,2900]
[null,"John",3100,1800,null,null,null,null,null,null,null,"John",3100,1800]
[null,"Sam",3700,1500,null,null,null,null,null,null,null,"Sam",3700,1500]
[null,"Tom",3300,2800,null,null,null,null,null,null,null,"Tom",3300,2800]
[null,"Total",{"$f":"SUM(C5:C9)","v":14700},{"$f":"SUM(D5:D9)","v":11700},null,null,null,null,null,null,null,"Total",{"$f":"SUM(M5:M9)","v":14700},{"$f":"SUM(N5:N9)","v":11700}]

{"sheet":"PDF","index":3,"n_rows":10,"n_cols":14,"rows_kept":10,"cut":false,"hidden":false,"merged":[[1,1,1,3],[1,11,1,13]]}
[]
[null,"Saving as PDF",null,null,null,null,null,null,null,null,null,"Try Yourself"]
[]
[null,"Seller","Jan","Feb",null,null,null,null,null,null,null,"Seller","Jan","Feb"]
[null,"Alex",1200,2700,null,null,null,null,null,null,null,"Alex",1200,2700]
[null,"Paul",3400,2900,null,null,null,null,null,null,null,"Paul",3400,2900]
[null,"John",3100,1800,null,null,null,null,null,null,null,"John",3100,1800]
[null,"Sam",3700,1500,null,null,null,null,null,null,null,"Sam",3700,1500]
[null,"Tom",3300,2800,null,null,null,null,null,null,null,"Tom",3300,2800]
[null,"Total",{"$f":"SUM(C5:C9)","v":14700},{"$f":"SUM(D5:D9)","v":11700},null,null,null,null,null,null,null,"Total",{"$f":"SUM(M5:M9)","v":14700},{"$f":"SUM(N5:N9)","v":11700}]

{"sheet":"Web Page","index":4,"n_rows":10,"n_cols":14,"rows_kept":10,"cut":false,"hidden":false,"merged":[[1,1,1,3],[1,11,1,13]]}
[]
[null,"Saving as Web Page",null,null,null,null,null,null,null,null,null,"Try Yourself"]
[]
[null,"Seller","Jan","Feb",null,null,null,null,null,null,null,"Seller","Jan","Feb"]
[null,"Alex",1200,2700,null,null,null,null,null,null,null,"Alex",1200,2700]
[null,"Paul",3400,2900,null,null,null,null,null,null,null,"Paul",3400,2900]
[null,"John",3100,1800,null,null,null,null,null,null,null,"John",3100,1800]
[null,"Sam",3700,1500,null,null,null,null,null,null,null,"Sam",3700,1500]
[null,"Tom",3300,2800,null,null,null,null,null,null,null,"Tom",3300,2800]
[null,"Total",{"$f":"SUM(C5:C9)","v":14700},{"$f":"SUM(D5:D9)","v":11700},null,null,null,null,null,null,null,"Total",{"$f":"SUM(M5:M9)","v":14700},{"$f":"SUM(N5:N9)","v":11700}]

{"sheet":"VBA","index":5,"n_rows":10,"n_cols":14,"rows_kept":10,"cut":false,"hidden":false,"merged":[[1,1,1,3],[1,11,1,13]]}
[]
[null,"Application of VBA",null,null,null,null,null,null,null,null,null,"Try Yourself"]
[]
[null,"Seller","Jan","Feb",null,null,null,null,null,null,null,"Seller","Jan","Feb"]
[null,"Alex",1200,2700,null,null,null,null,null,null,null,"Alex",1200,2700]
[null,"Paul",3400,2900,null,null,null,null,null,null,null,"Paul",3400,2900]
[null,"John",3100,1800,null,null,null,null,null,null,null,"John",3100,1800]
[null,"Sam",3700,1500,null,null,null,null,null,null,null,"Sam",3700,1500]
[null,"Tom",3300,2800,null,null,null,null,null,null,null,"Tom",3300,2800]
[null,"Total",{"$f":"SUM(C5:C9)","v":14700},{"$f":"SUM(D5:D9)","v":11700},null,null,null,null,null,null,null,"Total",{"$f":"SUM(M5:M9)","v":14700},{"$f":"SUM(N5:N9)","v":11700}]